[Event "Early-Titled-Tuesday-Blitz-February-13-2024"]
[Site "Chess.com"]
[Date "2024.02.13"]
[Round "11"]
[White "AttilaTurzo"]
[Black "Shodikulov_Jamshid1990"]
[Result "1/2-1/2"]
[WhiteElo "2479"]
[BlackElo "2373"]
[TimeControl "180+1"]
[EndTime "10:11:53 PST"]
[Termination "Game drawn - timeout vs insufficient material"]

1. d4 {[%clk 0:03:00.9]} 1... c5 {[%clk 0:03:00.3]} 2. d5 {[%clk 0:03:00.6]}
2... Nf6 {[%clk 0:02:57.7]} 3. Nc3 {[%clk 0:03:01]} 3... g6 {[%clk 0:02:55.5]}
4. e4 {[%clk 0:03:01]} 4... d6 {[%clk 0:02:56.1]} 5. Nf3 {[%clk 0:03:01.1]} 5...
Bg7 {[%clk 0:02:56.6]} 6. Bc4 {[%clk 0:03:01.4]} 6... O-O {[%clk 0:02:56.6]} 7.
O-O {[%clk 0:03:01.4]} 7... a6 {[%clk 0:02:55.8]} 8. a4 {[%clk 0:03:01]} 8...
Bg4 {[%clk 0:02:52.7]} 9. h3 {[%clk 0:03:00.7]} 9... Bxf3 {[%clk 0:02:53]} 10.
Qxf3 {[%clk 0:03:01.6]} 10... Nbd7 {[%clk 0:02:53.3]} 11. Qd1 {[%clk 0:02:58.4]}
11... Rb8 {[%clk 0:02:46.7]} 12. a5 {[%clk 0:02:58.3]} 12... h5 {[%clk
0:02:41.4]} 13. Re1 {[%clk 0:02:57.7]} 13... Kh7 {[%clk 0:02:22.9]} 14. Bg5
{[%clk 0:02:56.1]} 14... Ne5 {[%clk 0:02:14]} 15. Bf1 {[%clk 0:02:55.1]} 15...
Kg8 {[%clk 0:02:10.7]} 16. Qd2 {[%clk 0:02:54.3]} 16... Nh7 {[%clk 0:02:09.8]}
17. Be3 {[%clk 0:02:51.8]} 17... f5 {[%clk 0:01:50.9]} 18. f4 {[%clk 0:02:44.1]}
18... Nd7 {[%clk 0:01:50]} 19. exf5 {[%clk 0:02:40.4]} 19... gxf5 {[%clk
0:01:50.9]} 20. Be2 {[%clk 0:02:19.3]} 20... Qe8 {[%clk 0:01:40.1]} 21. Bf3
{[%clk 0:02:19]} 21... Qg6 {[%clk 0:01:39.2]} 22. Kh1 {[%clk 0:02:18.4]} 22...
Rbe8 {[%clk 0:01:35.3]} 23. Bf2 {[%clk 0:02:14.6]} 23... Kh8 {[%clk 0:01:31.5]}
24. Re6 {[%clk 0:02:13.6]} 24... Ndf6 {[%clk 0:01:27.7]} 25. Rae1 {[%clk
0:02:12.7]} 25... Qf7 {[%clk 0:01:25.2]} 26. Qd3 {[%clk 0:02:09.8]} 26... Ng8
{[%clk 0:01:23.2]} 27. Nd1 {[%clk 0:02:07.6]} 27... Rb8 {[%clk 0:00:56.7]} 28.
c3 {[%clk 0:01:41.9]} 28... b6 {[%clk 0:00:49.5]} 29. Qxa6 {[%clk 0:01:39.5]}
29... bxa5 {[%clk 0:00:49.8]} 30. Qxa5 {[%clk 0:01:39.9]} 30... Rfe8 {[%clk
0:00:48.4]} 31. Qa4 {[%clk 0:01:36.3]} 31... Nf8 {[%clk 0:00:47.9]} 32. R6e2
{[%clk 0:01:33.6]} 32... Nf6 {[%clk 0:00:46.3]} 33. Qa7 {[%clk 0:01:22]} 33...
Ng6 {[%clk 0:00:42.7]} 34. Re6 {[%clk 0:01:06.4]} 34... Qf8 {[%clk 0:00:33.2]}
35. Kh2 {[%clk 0:01:01.6]} 35... Nxf4 {[%clk 0:00:30.7]} 36. Rxe7 {[%clk
0:01:01.5]} 36... N4xd5 {[%clk 0:00:25.5]} 37. Rxe8 {[%clk 0:00:56]} 37... Rxe8
{[%clk 0:00:25.6]} 38. Rxe8 {[%clk 0:00:52.8]} 38... Qxe8 {[%clk 0:00:26.5]} 39.
Qb7 {[%clk 0:00:49.2]} 39... Nf4 {[%clk 0:00:19.7]} 40. Ne3 {[%clk 0:00:47.4]}
40... Qe5 {[%clk 0:00:18.1]} 41. Qc8+ {[%clk 0:00:45.1]} 41... Ng8 {[%clk
0:00:17.8]} 42. Qxf5 {[%clk 0:00:45]} 42... Qxf5 {[%clk 0:00:17.9]} 43. Nxf5
{[%clk 0:00:45.4]} 43... Nd3 {[%clk 0:00:18.8]} 44. Bg3 {[%clk 0:00:40.4]} 44...
Nxb2 {[%clk 0:00:17.8]} 45. Nxg7 {[%clk 0:00:40.7]} 45... Kxg7 {[%clk
0:00:18.7]} 46. Bxd6 {[%clk 0:00:40.6]} 46... c4 {[%clk 0:00:19.1]} 47. Bxh5
{[%clk 0:00:40.9]} 47... Nf6 {[%clk 0:00:19.9]} 48. Be5 {[%clk 0:00:39.9]} 48...
Nd3 {[%clk 0:00:18.3]} 49. Bxf6+ {[%clk 0:00:36.3]} 49... Kxf6 {[%clk
0:00:19.2]} 50. Kg3 {[%clk 0:00:33.4]} 50... Nc5 {[%clk 0:00:18.1]} 51. Be2
{[%clk 0:00:32.7]} 51... Ne4+ {[%clk 0:00:18.2]} 52. Kf4 {[%clk 0:00:33.2]}
52... Nxc3 {[%clk 0:00:19]} 53. Bxc4 {[%clk 0:00:33.5]} 53... Na4 {[%clk
0:00:18.9]} 54. g4 {[%clk 0:00:33.1]} 54... Nb6 {[%clk 0:00:19.1]} 55. Bb3
{[%clk 0:00:32]} 55... Nd7 {[%clk 0:00:18.8]} 56. h4 {[%clk 0:00:30.8]} 56...
Nc5 {[%clk 0:00:17.8]} 57. Bc2 {[%clk 0:00:27.5]} 57... Ne6+ {[%clk 0:00:17.2]}
58. Ke4 {[%clk 0:00:27.6]} 58... Nc5+ {[%clk 0:00:17.4]} 59. Kd5 {[%clk
0:00:27.7]} 59... Ne6 {[%clk 0:00:17.5]} 60. Ke4 {[%clk 0:00:21.2]} 60... Nc5+
{[%clk 0:00:17.3]} 61. Kf3 {[%clk 0:00:19.6]} 61... Ne6 {[%clk 0:00:15.3]} 62.
Be4 {[%clk 0:00:19.2]} 62... Nd4+ {[%clk 0:00:15]} 63. Kf4 {[%clk 0:00:19.1]}
63... Ne6+ {[%clk 0:00:15.6]} 64. Kg3 {[%clk 0:00:19.5]} 64... Ke5 {[%clk
0:00:15.5]} 65. Bf5 {[%clk 0:00:18.5]} 65... Nd4 {[%clk 0:00:15.5]} 66. Bd3
{[%clk 0:00:17.8]} 66... Kf6 {[%clk 0:00:15.2]} 67. Bc4 {[%clk 0:00:16.7]} 67...
Nc6 {[%clk 0:00:14.4]} 68. Kf4 {[%clk 0:00:16.2]} 68... Ne5 {[%clk 0:00:14.2]}
69. Bd5 {[%clk 0:00:14.4]} 69... Ng6+ {[%clk 0:00:14]} 70. Kg3 {[%clk
0:00:14.4]} 70... Ne7 {[%clk 0:00:14.6]} 71. Be4 {[%clk 0:00:13.6]} 71... Ke5
{[%clk 0:00:13.4]} 72. Kf3 {[%clk 0:00:13.5]} 72... Nc8 {[%clk 0:00:13.5]} 73.
g5 {[%clk 0:00:13.5]} 73... Nd6 {[%clk 0:00:14.1]} 74. Bd3 {[%clk 0:00:13.8]}
74... Ke6 {[%clk 0:00:11.9]} 75. h5 {[%clk 0:00:12.8]} 75... Nf7 {[%clk
0:00:11.5]} 76. g6 {[%clk 0:00:12.6]} 76... Ne5+ {[%clk 0:00:11.5]} 77. Ke4
{[%clk 0:00:11]} 77... Kf6 {[%clk 0:00:12.1]} 78. Kd4 {[%clk 0:00:09.6]} 78...
Nf3+ {[%clk 0:00:10.7]} 79. Ke3 {[%clk 0:00:08.8]} 79... Ng5 {[%clk 0:00:11.2]}
80. h6 {[%clk 0:00:08.6]} 80... Ne6 {[%clk 0:00:10.5]} 81. Bc2 {[%clk
0:00:03.9]} 81... Nc5 {[%clk 0:00:08.5]} 82. Kd4 {[%clk 0:00:02.6]} 82... Ne6+
{[%clk 0:00:08.4]} 83. Ke4 {[%clk 0:00:01.3]} 83... Ng5+ {[%clk 0:00:08.6]}
1/2-1/2

[Event "Early-Titled-Tuesday-Blitz-February-13-2024"]
[Site "Chess.com"]
[Date "2024.02.13"]
[Round "11"]
[White "blitzking1729"]
[Black "starworld123"]
[Result "1/2-1/2"]
[WhiteElo "2728"]
[BlackElo "2837"]
[TimeControl "180+1"]
[EndTime "10:11:54 PST"]
[Termination "Game drawn by repetition"]

1. c4 {[%clk 0:03:00.9]} 1... e6 {[%clk 0:03:00.5]} 2. Nf3 {[%clk 0:03:00.1]}
2... d5 {[%clk 0:03:01.4]} 3. e3 {[%clk 0:03:00.6]} 3... Nf6 {[%clk 0:03:01.5]}
4. Nc3 {[%clk 0:03:01.1]} 4... a6 {[%clk 0:03:01.6]} 5. b3 {[%clk 0:02:59]} 5...
b6 {[%clk 0:03:01.4]} 6. Bb2 {[%clk 0:02:58.7]} 6... Bb7 {[%clk 0:03:01.7]} 7.
cxd5 {[%clk 0:02:59]} 7... exd5 {[%clk 0:03:02.6]} 8. g3 {[%clk 0:02:59.1]} 8...
Nbd7 {[%clk 0:03:03.5]} 9. Bg2 {[%clk 0:02:59.2]} 9... Bd6 {[%clk 0:02:59.6]}
10. O-O {[%clk 0:02:59.7]} 10... O-O {[%clk 0:03:00.3]} 11. Ne2 {[%clk
0:03:00.2]} 11... Nc5 {[%clk 0:02:57.4]} 12. d3 {[%clk 0:02:55.3]} 12... a5
{[%clk 0:02:57.2]} 13. Nf4 {[%clk 0:02:30.5]} 13... a4 {[%clk 0:02:53.6]} 14. b4
{[%clk 0:02:29.8]} 14... Ne6 {[%clk 0:02:40.1]} 15. a3 {[%clk 0:02:27.4]} 15...
c5 {[%clk 0:02:31.7]} 16. bxc5 {[%clk 0:02:22]} 16... bxc5 {[%clk 0:02:32.6]}
17. Rb1 {[%clk 0:02:21.6]} 17... Nxf4 {[%clk 0:02:15]} 18. gxf4 {[%clk 0:02:20]}
18... Ba6 {[%clk 0:02:15.6]} 19. Kh1 {[%clk 0:02:17.3]} 19... c4 {[%clk
0:02:03.3]} 20. dxc4 {[%clk 0:02:15.8]} 20... Bxc4 {[%clk 0:02:04.2]} 21. Rg1
{[%clk 0:02:13.6]} 21... Ne4 {[%clk 0:02:04.9]} 22. Qe1 {[%clk 0:02:10.1]} 22...
f6 {[%clk 0:02:02.8]} 23. Nd2 {[%clk 0:02:04.9]} 23... Bd3 {[%clk 0:01:53.3]}
24. Rd1 {[%clk 0:01:52.1]} 24... Qe7 {[%clk 0:01:52.9]} 25. Nxe4 {[%clk
0:01:43.2]} 25... Bxe4 {[%clk 0:01:36.2]} 26. Rxd5 {[%clk 0:01:16.6]} 26... Bxa3
{[%clk 0:01:19.1]} 27. Bxa3 {[%clk 0:01:07.5]} 27... Bxg2+ {[%clk 0:01:19.7]}
28. Rxg2 {[%clk 0:01:07.7]} 28... Qxa3 {[%clk 0:01:20.6]} 29. Rd7 {[%clk
0:01:01.4]} 29... Rf7 {[%clk 0:01:06.8]} 30. Qd1 {[%clk 0:00:58.5]} 30... Raf8
{[%clk 0:00:55.2]} 31. Rg1 {[%clk 0:00:20.6]} 31... Qb3 {[%clk 0:00:55.5]} 32.
Qg4 {[%clk 0:00:13]} 32... Kh8 {[%clk 0:00:22.7]} 33. Rxf7 {[%clk 0:00:08.2]}
33... Qxf7 {[%clk 0:00:23.6]} 34. f5 {[%clk 0:00:06.4]} 34... Qd5+ {[%clk
0:00:16.7]} 35. Rg2 {[%clk 0:00:05.8]} 35... Qb7 {[%clk 0:00:08.5]} 36. Qxa4
{[%clk 0:00:05.1]} 36... Ra8 {[%clk 0:00:07.4]} 37. Qd1 {[%clk 0:00:04.3]} 37...
Qe4 {[%clk 0:00:05.9]} 38. h3 {[%clk 0:00:02.8]} 38... Qxf5 {[%clk 0:00:03.6]}
39. Qg4 {[%clk 0:00:03.4]} 39... Ra1+ {[%clk 0:00:03.1]} 40. Kh2 {[%clk
0:00:03.8]} 40... Qxg4 {[%clk 0:00:02.2]} 41. hxg4 {[%clk 0:00:04.1]} 41... h6
{[%clk 0:00:03.1]} 42. Kg3 {[%clk 0:00:03.9]} 42... Ra5 {[%clk 0:00:04]} 43. f3
{[%clk 0:00:04]} 43... Re5 {[%clk 0:00:04.7]} 44. e4 {[%clk 0:00:04.7]} 44...
Kh7 {[%clk 0:00:05.1]} 45. Rd2 {[%clk 0:00:05.3]} 45... Rc5 {[%clk 0:00:05.8]}
46. Rd7 {[%clk 0:00:05.4]} 46... Rc1 {[%clk 0:00:06.1]} 47. Kg2 {[%clk
0:00:04.7]} 47... Kg6 {[%clk 0:00:06.7]} 48. Rd5 {[%clk 0:00:04.6]} 48... Rc2+
{[%clk 0:00:07.1]} 49. Kg3 {[%clk 0:00:05.1]} 49... Re2 {[%clk 0:00:07.8]} 50.
Rc5 {[%clk 0:00:05]} 50... Re3 {[%clk 0:00:07.5]} 51. Rd5 {[%clk 0:00:05.4]}
51... Rc3 {[%clk 0:00:08.2]} 52. Kg2 {[%clk 0:00:05.2]} 52... Kf7 {[%clk
0:00:06.6]} 53. Rd7+ {[%clk 0:00:04.5]} 53... Kg6 {[%clk 0:00:07]} 54. Rd5
{[%clk 0:00:04.8]} 54... Rc1 {[%clk 0:00:07.6]} 55. Rb5 {[%clk 0:00:04.1]} 55...
Rd1 {[%clk 0:00:07.4]} 56. Rc5 {[%clk 0:00:04]} 56... Rd3 {[%clk 0:00:07.2]} 57.
Kg3 {[%clk 0:00:04.3]} 57... Rd6 {[%clk 0:00:07.4]} 58. Kg2 {[%clk 0:00:04.2]}
58... Rb6 {[%clk 0:00:06.7]} 59. Kg3 {[%clk 0:00:04.7]} 59... Rb7 {[%clk
0:00:06.8]} 60. e5 {[%clk 0:00:04.9]} 60... Kf7 {[%clk 0:00:06.1]} 61. exf6
{[%clk 0:00:05.1]} 61... Kxf6 {[%clk 0:00:07]} 62. Rf5+ {[%clk 0:00:05.3]} 62...
Kg6 {[%clk 0:00:07.5]} 63. Rc5 {[%clk 0:00:05.9]} 63... Rb1 {[%clk 0:00:08.1]}
64. Rc6+ {[%clk 0:00:06.5]} 64... Kh7 {[%clk 0:00:08.2]} 65. Kf4 {[%clk
0:00:06.9]} 65... Rb5 {[%clk 0:00:08.1]} 66. Kg3 {[%clk 0:00:07.4]} 66... Rb4
{[%clk 0:00:08.5]} 67. Rc5 {[%clk 0:00:07.7]} 67... Rb3 {[%clk 0:00:08.7]} 68.
Kf4 {[%clk 0:00:07.7]} 68... Rd3 {[%clk 0:00:09]} 69. Kg3 {[%clk 0:00:08.3]}
69... Rd6 {[%clk 0:00:09.5]} 70. Rb5 {[%clk 0:00:08.4]} 70... Rf6 {[%clk
0:00:10.1]} 71. Ra5 {[%clk 0:00:08.9]} 71... Kg6 {[%clk 0:00:10.6]} 72. f4
{[%clk 0:00:09.3]} 72... Rc6 {[%clk 0:00:09.9]} 73. Kh4 {[%clk 0:00:09.6]} 73...
Rc1 {[%clk 0:00:09.8]} 74. Ra6+ {[%clk 0:00:09.5]} 74... Kh7 {[%clk 0:00:10.5]}
75. f5 {[%clk 0:00:09.9]} 75... Rg1 {[%clk 0:00:10.5]} 76. Ra5 {[%clk
0:00:09.5]} 76... Rh1+ {[%clk 0:00:10.4]} 77. Kg3 {[%clk 0:00:09.6]} 77... Rg1+
{[%clk 0:00:11.3]} 78. Kh4 {[%clk 0:00:09.8]} 78... Rf1 {[%clk 0:00:12]} 79. Ra7
{[%clk 0:00:09.3]} 79... Rf2 {[%clk 0:00:11.9]} 80. Kg3 {[%clk 0:00:09.4]} 80...
Rf1 {[%clk 0:00:12.1]} 81. Kg2 {[%clk 0:00:10]} 81... Rf4 {[%clk 0:00:12.7]} 82.
Kg3 {[%clk 0:00:10.6]} 82... Rf1 {[%clk 0:00:13.4]} 83. Kg2 {[%clk 0:00:11.3]}
83... Rf4 {[%clk 0:00:12.6]} 84. Kg3 {[%clk 0:00:11.8]} 84... Rf1 {[%clk
0:00:12.7]} 1/2-1/2

[Event "Early-Titled-Tuesday-Blitz-February-13-2024"]
[Site "Chess.com"]
[Date "2024.02.13"]
[Round "11"]
[White "Lady_Nika"]
[Black "ploxoi"]
[Result "1-0"]
[WhiteElo "2585"]
[BlackElo "2446"]
[TimeControl "180+1"]
[EndTime "10:12:01 PST"]
[Termination "Lady_Nika won by resignation"]

1. d4 {[%clk 0:03:00.9]} 1... d5 {[%clk 0:02:58.8]} 2. e3 {[%clk 0:03:01]} 2...
Nf6 {[%clk 0:02:57.8]} 3. f4 {[%clk 0:03:01.2]} 3... c5 {[%clk 0:02:55.9]} 4.
Nf3 {[%clk 0:03:01.5]} 4... Nc6 {[%clk 0:02:56.1]} 5. c3 {[%clk 0:03:01.6]} 5...
Bf5 {[%clk 0:02:52.5]} 6. Bd3 {[%clk 0:03:01.6]} 6... g6 {[%clk 0:02:52.1]} 7.
O-O {[%clk 0:03:01.2]} 7... Bg7 {[%clk 0:02:52]} 8. Qc2 {[%clk 0:03:00.2]} 8...
Bxd3 {[%clk 0:02:51.1]} 9. Qxd3 {[%clk 0:03:00.2]} 9... c4 {[%clk 0:02:51.6]}
10. Qe2 {[%clk 0:02:59.9]} 10... Ne4 {[%clk 0:02:48.5]} 11. Nbd2 {[%clk
0:02:59.6]} 11... f5 {[%clk 0:02:45]} 12. Nxe4 {[%clk 0:02:59.6]} 12... fxe4
{[%clk 0:02:45.2]} 13. Ng5 {[%clk 0:02:59.9]} 13... Qd7 {[%clk 0:02:42]} 14. f5
{[%clk 0:03:00.1]} 14... O-O {[%clk 0:02:38.9]} 15. fxg6 {[%clk 0:02:51.2]}
15... hxg6 {[%clk 0:02:36.2]} 16. Bd2 {[%clk 0:02:50.7]} 16... Bh6 {[%clk
0:02:33.7]} 17. Nh3 {[%clk 0:02:48.8]} 17... e5 {[%clk 0:02:29]} 18. Rxf8+
{[%clk 0:02:31.3]} 18... Rxf8 {[%clk 0:02:28.3]} 19. Rf1 {[%clk 0:02:31.9]}
19... b5 {[%clk 0:02:27.1]} 20. Rxf8+ {[%clk 0:02:25]} 20... Kxf8 {[%clk
0:02:28]} 21. Be1 {[%clk 0:02:25]} 21... exd4 {[%clk 0:02:25.4]} 22. exd4 {[%clk
0:02:20.3]} 22... Ne7 {[%clk 0:02:03.9]} 23. Bg3 {[%clk 0:02:10.4]} 23... Qf5
{[%clk 0:02:01.8]} 24. Bd6 {[%clk 0:02:07]} 24... e3 {[%clk 0:01:59.7]} 25. g4
{[%clk 0:02:05.7]} 25... Qb1+ {[%clk 0:01:57.8]} 26. Qf1+ {[%clk 0:02:01.9]}
26... Qxf1+ {[%clk 0:01:56]} 27. Kxf1 {[%clk 0:02:02.1]} 27... e2+ {[%clk
0:01:53.5]} 28. Kxe2 {[%clk 0:02:00.7]} 28... Bc1 {[%clk 0:01:54.2]} 29. Ba3
{[%clk 0:02:00.5]} 29... Kf7 {[%clk 0:01:51.3]} 30. Kd1 {[%clk 0:01:59.3]} 30...
Be3 {[%clk 0:01:51.3]} 31. Ke2 {[%clk 0:01:56.4]} 31... Bc1 {[%clk 0:01:50.1]}
32. Ng1 {[%clk 0:01:54.1]} 32... Nc6 {[%clk 0:01:48.4]} 33. Nf3 {[%clk
0:01:51.2]} 33... Ke6 {[%clk 0:01:48.3]} 34. Kd1 {[%clk 0:01:48.5]} 34... Bf4
{[%clk 0:01:48.2]} 35. Bc5 {[%clk 0:01:44.3]} 35... a5 {[%clk 0:01:47.6]} 36. h4
{[%clk 0:01:44.3]} 36... a4 {[%clk 0:01:41.2]} 37. Ke2 {[%clk 0:01:39.1]} 37...
Bc1 {[%clk 0:01:38.9]} 38. Ba3 {[%clk 0:01:08.8]} 38... Bf4 {[%clk 0:01:38.2]}
39. Kd1 {[%clk 0:00:42.5]} 39... Nd8 {[%clk 0:01:36]} 40. Bf8 {[%clk 0:00:40.8]}
40... Nf7 {[%clk 0:01:33.9]} 41. h5 {[%clk 0:00:38.7]} 41... gxh5 {[%clk
0:01:32.9]} 42. gxh5 {[%clk 0:00:38.8]} 42... Kf5 {[%clk 0:01:32.9]} 43. Ne1
{[%clk 0:00:31.1]} 43... Kg4 {[%clk 0:01:28.1]} 44. Nc2 {[%clk 0:00:31.1]} 44...
Kf5 {[%clk 0:01:13.2]} 45. Na3 {[%clk 0:00:30.2]} 45... b4 {[%clk 0:01:07.2]}
46. Bxb4 {[%clk 0:00:29.2]} 46... Kg5 {[%clk 0:01:06.7]} 47. Nc2 {[%clk
0:00:27.2]} 47... Kxh5 {[%clk 0:01:06.4]} 48. Be7 {[%clk 0:00:26.5]} 48... Kg4
{[%clk 0:00:30]} 49. Nb4 {[%clk 0:00:26.1]} 49... a3 {[%clk 0:00:23.1]} 50. bxa3
{[%clk 0:00:25]} 50... Kf5 {[%clk 0:00:23.3]} 51. Nxd5 {[%clk 0:00:24.6]} 51...
Bb8 {[%clk 0:00:23.9]} 52. Kc2 {[%clk 0:00:21.9]} 52... Ke4 {[%clk 0:00:23.5]}
53. Nb6 {[%clk 0:00:20]} 53... Nh6 {[%clk 0:00:18.4]} 54. Nxc4 {[%clk
0:00:19.7]} 54... Kd5 {[%clk 0:00:18.9]} 55. Ne3+ {[%clk 0:00:19.7]} 55... Kc6
{[%clk 0:00:18.6]} 56. a4 {[%clk 0:00:18]} 56... Nf7 {[%clk 0:00:17.9]} 57. a5
{[%clk 0:00:17.3]} 57... Bc7 {[%clk 0:00:18]} 58. Bb4 {[%clk 0:00:16.4]} 58...
Nd8 {[%clk 0:00:17.2]} 59. Kb3 {[%clk 0:00:16.6]} 59... Nb7 {[%clk 0:00:15.7]}
60. a6 {[%clk 0:00:15.7]} 60... Nd8 {[%clk 0:00:13.6]} 61. Bc5 {[%clk
0:00:11.9]} 61... Bh2 {[%clk 0:00:13]} 62. Kb4 {[%clk 0:00:10.6]} 62... Bf4
{[%clk 0:00:10]} 63. d5+ {[%clk 0:00:10.8]} 63... Kc7 {[%clk 0:00:09.6]} 64. Nc4
{[%clk 0:00:09.1]} 64... Kb8 {[%clk 0:00:08.8]} 65. Kb5 {[%clk 0:00:08.6]} 65...
Ka8 {[%clk 0:00:05.8]} 66. Nb6+ {[%clk 0:00:08.5]} 66... Kb8 {[%clk 0:00:06.1]}
67. Nd7+ {[%clk 0:00:08.6]} 67... Ka8 {[%clk 0:00:06.6]} 68. a7 {[%clk
0:00:06.8]} 68... Bc7 {[%clk 0:00:06.7]} 69. Ka6 {[%clk 0:00:06.3]} 69... Nb7
{[%clk 0:00:05.8]} 70. d6 {[%clk 0:00:06.2]} 70... Bd8 {[%clk 0:00:04.1]} 71.
Bb4 {[%clk 0:00:04.8]} 71... Nxd6 {[%clk 0:00:01.7]} 72. Bxd6 {[%clk 0:00:04.6]}
72... Bc7 {[%clk 0:00:02.1]} 73. Bb4 {[%clk 0:00:04.4]} 73... Bd8 {[%clk
0:00:02.6]} 74. Kb5 {[%clk 0:00:04.6]} 74... Kxa7 {[%clk 0:00:02.5]} 75. c4
{[%clk 0:00:05]} 75... Kb7 {[%clk 0:00:03]} 76. Ne5 {[%clk 0:00:05.6]} 76... Bc7
{[%clk 0:00:03.3]} 77. Nd3 {[%clk 0:00:06.5]} 77... Bb6 {[%clk 0:00:02.9]} 78.
c5 {[%clk 0:00:07.4]} 1-0

[Event "Early-Titled-Tuesday-Blitz-February-13-2024"]
[Site "Chess.com"]
[Date "2024.02.13"]
[Round "11"]
[White "atomicmate123"]
[Black "Kotlyar_K"]
[Result "1-0"]
[WhiteElo "2394"]
[BlackElo "2512"]
[TimeControl "180+1"]
[EndTime "10:12:06 PST"]
[Termination "atomicmate123 won by checkmate"]

1. e4 {[%clk 0:03:00.9]} 1... e5 {[%clk 0:02:59.9]} 2. Nf3 {[%clk 0:03:00.7]}
2... Nc6 {[%clk 0:03:00.4]} 3. Bc4 {[%clk 0:03:00.7]} 3... Nf6 {[%clk
0:02:59.9]} 4. d3 {[%clk 0:03:00.4]} 4... Be7 {[%clk 0:02:59.5]} 5. c3 {[%clk
0:03:00.5]} 5... O-O {[%clk 0:02:59]} 6. Nbd2 {[%clk 0:02:59]} 6... d6 {[%clk
0:02:59.3]} 7. Nf1 {[%clk 0:02:58.1]} 7... Kh8 {[%clk 0:02:58.6]} 8. Ng3 {[%clk
0:02:57.5]} 8... Na5 {[%clk 0:02:56.2]} 9. Bb5 {[%clk 0:02:56.4]} 9... a6 {[%clk
0:02:52.6]} 10. Ba4 {[%clk 0:02:56.5]} 10... b5 {[%clk 0:02:52.5]} 11. Bc2
{[%clk 0:02:56.4]} 11... Ng8 {[%clk 0:02:52.3]} 12. b4 {[%clk 0:02:51]} 12...
Nc6 {[%clk 0:02:52.1]} 13. Bb3 {[%clk 0:02:51.1]} 13... Be6 {[%clk 0:02:41.9]}
14. Be3 {[%clk 0:02:35.3]} 14... a5 {[%clk 0:02:28.5]} 15. a3 {[%clk 0:02:26]}
15... a4 {[%clk 0:02:08.7]} 16. Bxe6 {[%clk 0:02:21.3]} 16... fxe6 {[%clk
0:02:09.6]} 17. O-O {[%clk 0:02:20.3]} 17... d5 {[%clk 0:02:06.8]} 18. d4 {[%clk
0:02:04.9]} 18... Bf6 {[%clk 0:02:00.3]} 19. dxe5 {[%clk 0:01:53.3]} 19... Nxe5
{[%clk 0:01:56.6]} 20. Nxe5 {[%clk 0:01:50.9]} 20... Bxe5 {[%clk 0:01:57.5]} 21.
Qd3 {[%clk 0:01:47.4]} 21... c6 {[%clk 0:01:56.2]} 22. f4 {[%clk 0:01:42.8]}
22... Bc7 {[%clk 0:01:55]} 23. e5 {[%clk 0:01:41.8]} 23... Bb6 {[%clk
0:01:55.2]} 24. Bxb6 {[%clk 0:01:39.1]} 24... Qxb6+ {[%clk 0:01:56.1]} 25. Qd4
{[%clk 0:01:39.6]} 25... Qc7 {[%clk 0:01:52.2]} 26. f5 {[%clk 0:01:28.2]} 26...
exf5 {[%clk 0:01:47.8]} 27. Nxf5 {[%clk 0:01:28]} 27... Rae8 {[%clk 0:01:47.4]}
28. Nd6 {[%clk 0:01:25.3]} 28... Rd8 {[%clk 0:01:35.3]} 29. Rxf8 {[%clk
0:01:16.9]} 29... Rxf8 {[%clk 0:01:36.2]} 30. Rf1 {[%clk 0:01:16.7]} 30... Rxf1+
{[%clk 0:01:33.7]} 31. Kxf1 {[%clk 0:01:17.2]} 31... Nh6 {[%clk 0:01:28.6]} 32.
Qf4 {[%clk 0:01:12.5]} 32... Kg8 {[%clk 0:01:23.5]} 33. g4 {[%clk 0:00:52.9]}
33... Nf7 {[%clk 0:01:14]} 34. Ke2 {[%clk 0:00:29.6]} 34... Qe7 {[%clk
0:01:06.9]} 35. Nxf7 {[%clk 0:00:23.5]} 35... Qxf7 {[%clk 0:01:07.8]} 36. Qf5
{[%clk 0:00:17.4]} 36... Qe8 {[%clk 0:01:00.9]} 37. Ke3 {[%clk 0:00:17.3]} 37...
g6 {[%clk 0:00:56.1]} 38. Qf6 {[%clk 0:00:16.9]} 38... Qc8 {[%clk 0:00:56.2]}
39. e6 {[%clk 0:00:16.3]} 39... Qc7 {[%clk 0:00:53.8]} 40. Kd4 {[%clk
0:00:13.9]} 40... Qb6+ {[%clk 0:00:51.8]} 41. Ke5 {[%clk 0:00:13.7]} 41... Qc7+
{[%clk 0:00:52.1]} 42. Kd4 {[%clk 0:00:13.9]} 42... Qb6+ {[%clk 0:00:51.6]} 43.
Kd3 {[%clk 0:00:13.7]} 43... Qc7 {[%clk 0:00:50.7]} 44. e7 {[%clk 0:00:13.4]}
44... Qc8 {[%clk 0:00:46.5]} 45. h3 {[%clk 0:00:12.4]} 45... Qe8 {[%clk
0:00:42.9]} 46. Kd4 {[%clk 0:00:12.9]} 46... Qf7 {[%clk 0:00:40.8]} 47. Qd6
{[%clk 0:00:10.3]} 47... Qf2+ {[%clk 0:00:39.2]} 48. Ke5 {[%clk 0:00:10.1]}
48... Qe3+ {[%clk 0:00:34.6]} 49. Kf6 {[%clk 0:00:10.4]} 49... Qxc3+ {[%clk
0:00:30.6]} 50. Ke6 {[%clk 0:00:10.8]} 50... Qe3+ {[%clk 0:00:26.7]} 51. Kd7
{[%clk 0:00:11.2]} 51... Kf7 {[%clk 0:00:26.4]} 52. Kd8 {[%clk 0:00:07.2]} 52...
Qg5 {[%clk 0:00:17.4]} 53. Qd7 {[%clk 0:00:05.6]} 53... h5 {[%clk 0:00:14.8]}
54. Qe8+ {[%clk 0:00:05.9]} 54... Ke6 {[%clk 0:00:14.7]} 55. Qg8+ {[%clk
0:00:04.6]} 55... Kd6 {[%clk 0:00:14]} 56. Qf8 {[%clk 0:00:04.8]} 56... hxg4
{[%clk 0:00:13.3]} 57. hxg4 {[%clk 0:00:05.2]} 57... d4 {[%clk 0:00:10.7]} 58.
Qg7 {[%clk 0:00:04.3]} 58... Ke6 {[%clk 0:00:07.5]} 59. Ke8 {[%clk 0:00:01.9]}
59... d3 {[%clk 0:00:06.4]} 60. Qf7+ {[%clk 0:00:02.4]} 60... Kd6 {[%clk
0:00:05.8]} 61. Kf8 {[%clk 0:00:02.6]} 61... Qh6+ {[%clk 0:00:06.2]} 62. Qg7
{[%clk 0:00:03]} 62... Qf4+ {[%clk 0:00:06.7]} 63. Kg8 {[%clk 0:00:02.7]} 63...
Qe4 {[%clk 0:00:05.6]} 64. Qf6+ {[%clk 0:00:02.3]} 64... Kd7 {[%clk 0:00:05.6]}
65. Kf8 {[%clk 0:00:01.4]} 65... d2 {[%clk 0:00:04.8]} 66. Qf7 {[%clk
0:00:01.7]} 66... Kd6 {[%clk 0:00:01.4]} 67. e8=Q {[%clk 0:00:01.9]} 67... Qxe8+
{[%clk 0:00:01.1]} 68. Qxe8 {[%clk 0:00:02.8]} 68... d1=Q {[%clk 0:00:01.7]} 69.
Qd8+ {[%clk 0:00:03.6]} 69... Ke6 {[%clk 0:00:01.6]} 70. Qxd1 {[%clk 0:00:04.5]}
70... Kf6 {[%clk 0:00:02.5]} 71. Qd4+ {[%clk 0:00:04.3]} 71... Kg5 {[%clk
0:00:03.3]} 72. Kg7 {[%clk 0:00:04.3]} 72... Kh4 {[%clk 0:00:03.9]} 73. Kh6
{[%clk 0:00:03.8]} 73... Kg3 {[%clk 0:00:04.8]} 74. Kg5 {[%clk 0:00:04.2]} 74...
Kh3 {[%clk 0:00:05.2]} 75. Qd3+ {[%clk 0:00:04.6]} 75... Kg2 {[%clk 0:00:05.6]}
76. Kf4 {[%clk 0:00:05.1]} 76... Kh2 {[%clk 0:00:06.5]} 77. Qd2+ {[%clk
0:00:05.4]} 77... Kg1 {[%clk 0:00:07.4]} 78. Kg3 {[%clk 0:00:05.4]} 78... Kh1
{[%clk 0:00:08.3]} 79. Qh2# {[%clk 0:00:05.4]} 1-0